Cogmind - Beta 16.1 @@@ ROGUE MODE // 2026.04.26 @ 14:21:47 Player: beans Result: Destroyed by D-53 Grenadier with Mini Grenade Launcher Performance ------------- Evolutions (1) 500 Regions Visited (3) 600 Robots Destroyed (30) 150 Value Destroyed (465) 465 Prototype IDs (0) 0 Alien Tech Used (0) 0 Bonus (0) 0 TOTAL SCORE: 1715 Bonus ------- None Cogmind --------- Core Integrity 0/400 Matter 78/300 Energy 60/100 System Corruption 0% Temperature Cool (30) Movement Core (100) Ox1 Location -9/Mines Parts ------- > --- POWER (1) -------- (None) > --- PROPULSION (2) --- (None) > --- UTILITY (3) ------ Targeting Computer > --- WEAPON (3) ------- Particle Gun Particle Gun > --- INVENTORY (5) ---- Cooling System Assault Rifle Improved Light Cannon Peak State ------------ > --- POWER ------------ Improved Ion Engine > --- PROPULSION ------- Light Treads Light Treads > --- UTILITY ---------- Cooling System Large Storage Unit Targeting Computer > --- WEAPON ----------- Improved Light Cannon Improved Light Cannon Improved Light Cannon > --- INVENTORY -------- Ion Engine Cooling System Light Armor Plating Particle Gun Particle Gun Assault Rifle Light Assault Rifle Improved Light Cannon [Rating: 15] Favorites ----------- Power Ion Engine Engine Ion Engine Propulsion Light Treads Treads Light Treads Utility Targeting Computer Device Cooling System Storage Large Storage Unit Processor Targeting Computer Weapon Assault Rifle Energy Gun Particle Gun Ballistic Gun Assault Rifle Ballistic Cannon Improved Light Cannon Build | -11 -10 -9 -9 ------- Run | Yrd Mat Mat Min Slots Evolved 2 | . . 2 . Power . | . . . . Propulsion . | . . . . Utility 1 | . . 1 . Weapon 1 | . . 1 . Parts Attached 20 | 5 7 7 1 Power 3 | 1 2 . . Engine 3 | 1 2 . . Core . | . . . . Reactor . | . . . . Propulsion 3 | 2 . 1 . Treads 3 | 2 . 1 . Leg . | . . . . Wheel . | . . . . Hover . | . . . . Flight . | . . . . Utility 6 | . 5 1 . Device 1 | . . 1 . Storage 1 | . 1 . . Processor 4 | . 4 . . Hackware . | . . . . Protection . | . . . . Artifact . | . . . . Weapon 8 | 2 . 5 1 Energy Gun 2 | . . 2 . Energy Cannon . | . . . . Ballistic Gun 2 | 2 . . . Ballistic Cannon 4 | . . 3 1 Launcher . | . . . . Special Weapon . | . . . . Impact Weapon . | . . . . Slashing Weapon . | . . . . Piercing Weapon . | . . . . Special Melee Weapon . | . . . . Unidentified Prototypes . | . . . . Parts Lost 8 | . . 1 7 Power 1 | . . . 1 Propulsion 3 | . . 1 2 Utility 1 | . . . 1 Weapon 3 | . . . 3 Highest Loss Streak 6 | . . 1 6 To Critical Strikes . | . . . . Average Backups 3 | . 2 8 7 Power . | . . 1 . Propulsion . | . . . . Utility 1 | . . 2 1 Weapon 1 | . . 5 4 Tool/Special . | . . . . Unused Backups 5 | . 3 . 2 Power . | . . . . Propulsion 1 | . 1 . . Utility 2 | . . . 2 Weapon 2 | . 2 . . Tool/Special . | . . . . Average Slot Usage (%) 90 | . 93 90 71 Engine 12 | . 13 11 8 Treads 23 | . 27 20 9 Device 1 | . . 3 8 Storage 3 | . . 11 8 Processor 19 | . 22 11 11 Energy Gun 2 | . . 2 18 Ballistic Gun 19 | . 27 1 . Ballistic Cannon 6 | . . 29 8 Peak Build Rating 15 | 5 9 15 15 Average Rating 8 | 3 6 13 11 On Entrance 7 | . 5 9 15 Avg Prop Armor Cover (%) . | . . . . Naked Turns 6 | . 6 . . Heaviest Build 41 | 6 30 41 39 Greatest Support 40 | 40 40 40 20 Greatest Overweight (x) 2 | . . 2 1 Average Overweight (x) . | . . . . Largest Inventory Capacity 15 | 5 15 15 15 Average Capacity 8 | 5 5 15 12 Most Carried 9 | 5 9 9 8 Average Carried 3 | . 2 8 7 Final Capacity 15 | 5 15 15 5 Final Carried 9 | . 9 8 3 Class Distribution -------------------- 74% | Mutant 25% | Gunner Dominant Class ---------------- Mutant | -10/Materials Gunner | -9/Materials Gunner | -9/Mines Resources | -11 -10 -9 -9 ----------- Run | Yrd Mat Mat Min Matter Collected 592 | 209 202 149 32 Remotely . | . . . . Salvage Created 670 | . 510 128 32 Parts 57 | . 46 10 1 Haulers Intercepted 1 | . 1 . . Recyclers Shooed 1 | . . 1 . Parts Field Recycled . | . . . . Retrieved Matter . | . . . . Parts Self-Destructed . | . . . . Prevented . | . . . . Parts Restored . | . . . . Kills | -11 -10 -9 -9 ------- Run | Yrd Mat Mat Min Combat Hostiles Destroyed 21 | . 13 5 3 Guns 16 | . 13 . 3 Cannons 5 | . . 5 . Classes Destroyed 8 | . 7 1 . Builder 3 | . 2 1 . Tunneler 1 | . 1 . . Hauler 1 | . 1 . . Recycler 1 | . 1 . . Watcher 3 | . 3 . . Swarmer 15 | . 10 2 3 Grunt 3 | . 3 . . Sentry 3 | . . 3 . Best Kill Streak 6 | . 6 3 3 Combat Bots Only 5 | . 5 3 3 Max Kills in Single Turn 1 | . 1 1 1 Gunslinging . | . . . . Exploded . | . . . . Melee . | . . . . Uniques/NPCs Destroyed . | . . . . Combat | -11 -10 -9 -9 -------- Run | Yrd Mat Mat Min Hostile Shots Fired 140 | . 49 29 62 Missed 40 | . 18 11 11 Hits 100 | . 31 18 51 Projectile 100 | . 31 18 51 AOE 22 | . . . 22 Critical Strikes 4 | . . 1 3 Damage Taken 1573 | . 256 213 1104 Core 496 | . 54 15 427 Absorbed by Shields . | . . . . Core Remaining (%) 89 | 100 78 . . Volleys Fired 85 | 1 56 16 12 Largest 3 | 2 2 3 3 Hottest 130 | 40 40 130 130 Shots Fired 175 | 2 112 37 24 Gun 136 | 2 112 2 20 Cannon 39 | . . 35 4 Launcher . | . . . . Special . | . . . . Kinetic 153 | 2 112 35 4 Thermal 22 | . . 2 20 Explosive . | . . . . Electromagnetic . | . . . . Robot Hit Streak 9 | 1 9 4 3 Robot Miss Streak 5 | 1 5 5 4 Penetration Max . | . . . . Secondary Targets 6 | . 6 . . Max Gunslinging Chain 1 | . 1 . . Shots Hit Robots 94 | 1 63 16 14 Core Hits 43 | . 31 7 5 Critical Kills . | . . . . Critical Parts Destroyed . | . . . . Critical Strikes 6 | . . 3 3 Burn 3 | . . . 3 Blast 3 | . . 3 . Melee Attacks . | . . . . Impact . | . . . . Slashing . | . . . . Piercing . | . . . . Sneak Attacks . | . . . . Combat Hostiles . | . . . . Follow-up Attacks . | . . . . Damage Inflicted 1287 | 10 694 352 231 Guns 888 | 10 694 . 184 Cannons 399 | . . 352 47 Explosions . | . . . . Melee . | . . . . Ramming . | . . . . Kinetic 1103 | 10 694 352 47 Thermal 184 | . . . 184 Explosive . | . . . . Electromagnetic . | . . . . Impact . | . . . . Slashing . | . . . . Piercing . | . . . . Highest Corruption . | . . . . Average Corruption . | . . . . Corruption Purged . | . . . . Corruption Blocked . | . . . . Overload Shots . | . . . . Overflow Damage . | . . . . Projectiles . | . . . . Explosions . | . . . . Melee . | . . . . Knockbacks 1 | . . . 1 Impact . | . . . . Kinetic 1 | . . . 1 Secondary . | . . . . Self-Inflicted Damage . | . . . . Shots . | . . . . Rammed . | . . . . Targets Rammed . | . . . . Kicked . | . . . . Crushed . | . . . . Highest Temperature 117 | . 6 117 30 Average Temperature 38 | . 6 43 18 Received Heat Transfer 174 | . 30 72 72 Siege Activations . | . . . . Martial Activations . | . . . . Shielding Activations . | . . . . Robots Disrupted . | . . . . Combat Hostiles . | . . . . Robots Corrupted . | . . . . Combat Hostiles . | . . . . Parts Fried . | . . . . Impact Corruptions . | . . . . Robots Melted . | . . . . Combat Hostiles . | . . . . Parts Melted 2 | . . . 2 Heat Transferred 666 | . . . 666 Parts Sabotaged . | . . . . Parts Stolen . | . . . . Parts Stripped . | . . . . Power Chain Reactions . | . . . . Alert | -11 -10 -9 -9 ------- Run | Yrd Mat Mat Min Maximum Alert Level . | . . . . Low Security (%) 100 | 100 100 100 100 Level 1 . | . . . . Level 2 . | . . . . Level 3 . | . . . . Level 4 . | . . . . Level 5 . | . . . . High Security . | . . . . Max Security . | . . . . Peak Influence 151 | . 150 151 91 Initial 54 | . . 54 41 Average 50 | . 40 108 49 Influence Increases 618 | . 385 163 70 Destroy 0b10 Robot/C 420 | . 260 100 60 Destroy 0b10 Robot/NC 45 | . 40 5 . Destroy Leader 108 | . 58 40 10 Successful Hack 27 | . 27 . . Destroy Structure 3 | . . 3 . Lose Combat Pursuer 15 | . . 15 . Influence Decreases 618 | . 255 186 177 Entered New Map 142 | . . 76 66 Time Decay 415 | . 255 100 60 Lost Part 61 | . . 10 51 Squads Dispatched 2 | . 1 1 . Investigation 1 | . 1 . . Extermination . | . . . . Reinforcement 1 | . . 1 . Assault . | . . . . Garrison . | . . . . Intercept . | . . . . Searches Triggered . | . . . . Construction Impeded 1 | . . 1 . Haulers Reinforced . | . . . . Active Scanning Responses . | . . . . Cargo Convoy Interrupts . | . . . . Stealth | -11 -10 -9 -9 --------- Run | Yrd Mat Mat Min Distress Signals 1 | . . . 1 Communications Jammed . | . . . . Distress Signals . | . . . . Times Spotted 41 | . 22 6 13 Peak Tracking Total 8 | . 5 4 8 Tactical Retreats 1 | . . 1 . Traps | -11 -10 -9 -9 ------- Run | Yrd Mat Mat Min Traps Triggered 3 | . 3 . . Indirectly . | . . . . Trap Hack Attempts . | . . . . Triggered . | . . . . Disarmed . | . . . . Reprogrammed . | . . . . Reused . | . . . . Traps Extracted . | . . . . Installed . | . . . . Triggered . | . . . . Machines | -11 -10 -9 -9 ---------- Run | Yrd Mat Mat Min Machines Disabled 1 | . . 1 . Max in Single Turn 1 | . . 1 . Machines Repaired . | . . . . Machines Dismantled . | . . . . Machines Sabotaged . | . . . . Overloaded Fab Kills . | . . . . Hacking | -11 -10 -9 -9 --------- Run | Yrd Mat Mat Min Machines Accessed 5 | . 5 . . Terminals 3 | . 3 . . Fabricators . | . . . . Repair Stations . | . . . . Recycling Units 2 | . 2 . . Scanalyzers . | . . . . Garrison Access . | . . . . Total Hacks 16 | . 16 . . Successful 11 | . 11 . . Failed 5 | . 5 . . Catastrophic . | . . . . Database Lockouts . | . . . . Manual 16 | . 16 . . Terminals 6 | . 6 . . Fabricators . | . . . . Repair Stations . | . . . . Recycling Units 10 | . 10 . . Scanalyzers . | . . . . Garrison Access . | . . . . Terminal Hacks 1 | . 1 . . Patrol Status 1 | . 1 . . Fabricator Hacks . | . . . . Repair Station Hacks . | . . . . Recycling Unit Hacks . | . . . . Scanalyzer . | . . . . Garrison Access Hacks . | . . . . Unauthorized Hacks 9 | . 9 . . Terminals 2 | . 2 . . Track 1 | . 1 . . Disrupt 1 | . 1 . . Fabricators . | . . . . Repair Stations . | . . . . Recycling Units 7 | . 7 . . Monitor 2 | . 2 . . Reject 1 | . 1 . . Recyclers 2 | . 2 . . Mask 2 | . 2 . . Scanalyzers . | . . . . Garrison Access . | . . . . Data Cores Recovered . | . . . . Used . | . . . . Hacking Detections 3 | . 3 . . Full Trace Events 1 | . 1 . . Feedback Events . | . . . . Feedback Blocked . | . . . . Robot Schematics Acquired . | . . . . Robots Built . | . . . . Authchips . | . . . . Time . | . . . . Total Robot Build Rating . | . . . . Part Schematics Acquired . | . . . . Parts Built . | . . . . Authchips . | . . . . Time . | . . . . Total Part Build Rating . | . . . . Part Studies Acquired . | . . . . Parts Repaired . | . . . . Time . | . . . . Parts Recycled . | . . . . Recycled Matter . | . . . . Retrieved Matter . | . . . . Retrieved Components . | . . . . Parts Scanalyzed . | . . . . Part Schematics Acquired . | . . . . Parts Damaged . | . . . . Bothacking | -11 -10 -9 -9 ------------ Run | Yrd Mat Mat Min Used RIF Installer . | . . . . Robots Hacked . | . . . . Non-combat . | . . . . Combat . | . . . . Robot Hacks Applied . | . . . . Relay Couplers Released . | . . . . Fabnet Peak Effective % . | . . . . Robots Rewired . | . . . . Allies Hacked . | . . . . Hacks Repelled . | . . . . Allies | -11 -10 -9 -9 -------- Run | Yrd Mat Mat Min Total Allies . | . . . . Largest Group . | . . . . Highest-Rated Group . | . . . . Highest-Rated Ally . | . . . . Total Orders . | . . . . Ally Attacks . | . . . . Total Damage . | . . . . Kills . | . . . . Allies Corrupted . | . . . . Allies Melted . | . . . . Intel | -11 -10 -9 -9 ------- Run | Yrd Mat Mat Min Active Infowar (turns) . | . . . . Robot Analysis Total . | . . . . Derelict Logs Recovered . | . . . . Drone Launches . | . . . . Drone Recoveries . | . . . . Exploration | -11 -10 -9 -9 ------------- Run | Yrd Mat Mat Min Turns Passed 1251 | 63 828 202 158 Spaces Moved 511 | 43 322 82 64 Core 53 | 16 9 . 28 Treads 458 | 27 313 82 36 Legs . | . . . . Wheels . | . . . . Hover . | . . . . Flight . | . . . . Fastest Speed 50 | 50 50 160 50 Average Speed 157 | 119 156 178 156 Slowest Speed 320 | 160 160 320 240 Overloaded Moves . | . . . . Propulsion Burnouts . | . . . . Robots Hopped . | . . . . Potential Cave-ins . | . . . . Cave-ins Triggered . | . . . . Exploration Rate (%) 19 | 2 42 12 23 Regions Visited 3 Branch Regions 1 Pre-discovered Areas . | . . . . Known Exits Taken . | . . . . Unknown Exits Taken 3 | 1 1 1 . Scrap Searched . | . . . . Spaces Dug . | . . . . Terrain Destroyed 2 | . . 2 . Melee . | . . . . Projectile 2 | . . 2 . AOE . | . . . . Terrain Rammed . | . . . . Walls Destroyed . | . . . . Machines Disabled . | . . . . Actions | -11 -10 -9 -9 --------- Run | Yrd Mat Mat Min Total 806 | 53 547 106 100 Wait 145 | . 130 . 15 Move 508 | 42 321 81 64 Hop . | . . . . Pick Up 31 | 5 23 2 1 Fast Attach . | . . . . Attach 20 | 5 10 3 2 Detach . | . . . . Swap 7 | . 1 4 2 Drop 10 | . 6 . 4 Fire 85 | 1 56 16 12 Melee . | . . . . Ram . | . . . . Kick . | . . . . Crush . | . . . . Escape Stasis . | . . . . Rewire . | . . . . Trap . | . . . . Miscellaneous . | . . . . Route ------- -11/Scrapyard -10/Materials -9/Materials -9/Mines History --------- Turn | Location | Event 6 | -11/Scrapyard | Discovered new exit (range 15) 64 | -11/Scrapyard | Entered Materials 310 | -10/Materials | Build established: Mutant 879 | -10/Materials | Discovered new exit (range 9) 892 | -10/Materials | Entered another Materials area 892 | -9/Materials | Evolved 2 slots: Utility x1, Weapon x1 1047 | -9/Materials | Discovered new exit (range 16) 1094 | -9/Materials | Entered Mines 1175 | -9/Mines | Assembled infested the area 1180 | -9/Mines | Assisted by a Guerilla fighting off Assembled 1186 | -9/Mines | Build established: Gunner 1221 | -9/Mines | Core integrity fell below 50% 1224 | -9/Mines | Core integrity fell below 20% 1249 | -9/Mines | Lost 6 parts (1p1n1u3w) 1252 | -9/Mines | Destroyed by D-53 Grenadier with Mini Grenade Launcher Last Messages --------------- Imp. Ion Engine destroyed. as-95237 destroyed. Lgt. Treads destroyed. YI-UF0 mumbles something. as-38244 destroyed. Imp. Light Cannon destroyed. Critical hit (Burn: +37). Imp. Light Cannon destroyed. Cooling System destroyed. Dropped Ion Engine. Critical hit (Burn: +37). Dropped Lgt. Assault Rifle. Dropped Lrg. Storage Unit. Dropped Lgt. Armor Plating. Y-45 Defender destroyed. Acquired Imp. Light Cannon. The unstable cave ceiling collapses. as-56191 destroyed. The unstable cave ceiling collapses. D-53 Grenadier suffers critical hit (Burn). Map ----- +----------------------------------------------------+ | | | | | | | | | | | | | | | | | | | | | | | | | | | | | | | | | | | | | | | | | | | ???###??##????????????????????? | | ???# ## ##???????????????????? | | ??## #???????????????????? | | ??# #???????????????????? | | ??# @ #???????????????????? | | ??# #???????????????????? | | ?# #???????????????????? | | ?## d# #???????????????????? | | ??### ##???????????????????? | | ????# d ##??????????????????? | | ????## ##????????####?????? | | ?????## ##??????## ##????? | | ??????## ##?????# #????? | | ???????## ##????# #????? | | ????????## #???## #????? | | ?????????# ##### ##???? | | ?????????## #### | | ??????????# | | ??????????## #### | | ???????????######??## ### | | ????????????????????## #??? | | ???????????#"!!??????# ##??? | | ??????????#""[]"??#### ##??? | | ??????????# =!%## ###? | | ???????????# [[= ! #? | | ??????????###++# ? | | ??????????# ! ### | | ???????? ! #? | | ?????????# % | +----------------------------------------------------+ Best States ------------- Heat Dissipation 50 Energy Generation 12 Energy Capacity 265 Matter Stores 255 Matter Capacity 300 Sight Range 16 Terrain Scan Density 10 Evasion (%) 50 Targeting Accuracy 10 Recoil Reduction 2 Item Schematics ----------------- None Robot Schematics ------------------ None Fabricated ------------ Nothing Repaired ---------- Nothing Studied --------- None Alien Tech Used ----------------- None Achievements -------------- None Challenges ------------ None Game ------ Seed RagnarokLongswordChainsaw Manual? 0 Play Time 00:16:51 Cumulative 277.8 hours Start 2026.04.26 @ 12:12:18 End 2026.04.26 @ 14:21:47 Sessions 1 Manual Loads 0 Difficulty Rogue Special Mode None Game No. 734 Rogue 732 Adventurer 2 Explorer 0 Win Type - Total 0 Types 0/0/0/0/0/0/0/0/0/0 Lore% 68 Gallery% 64 Achievement% 45 Wizard Run 0 Options --------- Layout 2 ASCII 0 Keyboard 0 Movement Mouse Keybinds 0 Fullscreen 1 Font 24/Smallcaps Map View 50x44 Zoom Use 0% Tactical HUD 0 Map Filters NONE Filters NONE Steam 1 RUN: a3be829e-2314-42d6-ae2a-0717527c7892